[Event "85th Tata Steel Masters 2023"]
[Site "Wijk aan Zee"]
[Date "2023.01.27"]
[Round "11.4"]
[White "Praggnanandhaa R"]
[Black "Maghsoodloo, Parham"]
[Result "0-1"]
[ECO "B90"]
[WhiteElo "2684"]
[BlackElo "2719"]
[Annotator "TA"]
[PlyCount "104"]
[EventDate "2023.01.10"]
[EventType "tourn"]
[EventCountry "NED"]
[SourceTitle "playchess.com"]
[Source "ChessBase"]
[SourceQuality "1"]
[TimeControl "40/6000+30:30/3000+30:900+30"]

{[%evp 11,104,15,20,-3,12,8,0,0,8,0,0,0,0,0,0,0,0,0,36,26,56,50,58,-43,-29,-23,-22,-20,-13,-20,-24,-30,-17,-25,-27,-43,-41,-304,-294,-350,-329,-316,-282,-272,-236,-195,-112,-276,-287,-373,-357,-366,-357,-367,-358,-406,-408,-633,-485,-717,-697,-918,-909,-1609,-1119,-29975,-716,-703,-668,-643,-613,-593,-598,-1518,-460,-443,-437,-729,-657,-1312,-460,-460,-438,-444,-437,-460,-460,-453,-453,-453,-430,-11252,-7376,-29976,-584]} 1. e4 {[%emt 0:00:40]} c5 {[%emt 0:00:08]} 2. Nf3 {[%emt 0:00:05]} d6 {[%emt 0:00:08]} 3. d4 {[%emt 0:00:05]} cxd4 {[%emt 0:00:05]} 4. Nxd4 {[%emt 0:00:05]} Nf6 {[%emt 0:00:06]} 5. Nc3 {[%emt 0:00:04]} a6 {[%emt 0:01:08]} 6. h3 {[%emt 0:00:22]} e5 $1 {[%emt 0:00:14] The main line 6...e5 scores better than 6...e6.} 7. Nf3 {[%emt 0:00:07] B90: Sicilian Najdorf: Unusual White 6th moves, 6 Be3 Ng4 and 6 Be3 e5.} Qc7 {[%emt 0:08:37]} 8. Nh2 {[%emt 0:00:30] [#]} Nbd7 $146 {[%emt 0:15:04]} ({Predecessor:} 8... Be6 9. Be2 Nbd7 10. a4 Be7 11. Ng4 Qc6 12. Bf3 O-O 13. O-O b5 14. Ne3 b4 {1-0 Nestorovic,N (2509)-Lazov,T (2279) Paracin Summer op-A 10th 2017 (7.17)}) 9. Ng4 {[%emt 0:00:15] The position is equal.} b5 {[%emt 0:03:10]} 10. Ne3 {[%emt 0:00:36]} Nb6 {[%emt 0:03:22]} 11. a3 {[%emt 0:00:25]} Be7 {[%emt 0:07:51]} 12. Bd3 {[%emt 0:01:08]} Be6 {[%emt 0:02:22]} 13. Qf3 {[%emt 0:03:39]} g6 {[%emt 0:02:57]} 14. O-O {[%emt 0:05:42]} Nfd7 {[%emt 0:13:44]} 15. Bd2 {[%emt 0:16:13]} Nc5 {[%emt 0:01:33]} 16. Be2 {[%emt 0:01:25]} O-O {[%emt 0:05:12] [#]} 17. Nf5 {[%emt 0:10:35]} Bxf5 {[%emt 0:02:56]} (17... gxf5 $5 18. exf5 Kh8 $11) 18. exf5 {[%emt 0:00:14] [#]} d5 $1 {[%emt 0:00:15]} 19. Bh6 {[%emt 0:08:50]} (19. Nxd5 $2 Nxd5 20. Bh6 (20. Qxd5 $2 Rad8 $19) 20... Rfd8 $19) 19... Rfd8 {[%emt 0:08:46]} 20. Rad1 {[%emt 0:02:14][%cal Rd1d5]} (20. Qg3 $5) 20... e4 $36 {[%emt 0:00:15][%mdl 2048] Black is pushing.} 21. Qg4 {[%emt 0:04:55]} Nca4 {[%emt 0:06:12]} (21... Qe5 {simplifies} 22. Bf4 Qxf5 23. Qxf5 gxf5 24. Bc7 Nca4) 22. Nxa4 {[%emt 0:12:06]} Nxa4 {[%emt 0:00:07]} 23. fxg6 {[%emt 0:07:29]} hxg6 {[%emt 0:00:14]} 24. f4 $2 {[%emt 0:00:08][%mdl 8192]} (24. Rb1 $15) 24... Qb6+ $19 {[%emt 0:02:44]} (24... Nxb2 $2 25. Rb1 Qb6+ 26. Kh2 $19) (24... Qxc2 25. f5 Qc6 26. Rc1 Qb6+ 27. Kh1 Nxb2 28. Rc7 $16) 25. Kh1 {[%emt 0:00:09]} f5 {[%emt 0:00:02]} (25... Nxb2 $2 26. Rb1 f5 27. Qg3 $19) 26. Qg3 {[%emt 0:00:15]} Nxb2 {[%emt 0:00:08]} 27. Rb1 {[%emt 0:03:07]} Nc4 {[%emt 0:01:11]} 28. a4 {[%emt 0:02:09]} Kh7 {[%emt 0:09:53]} ({Black should try} 28... b4 $19 {And now ...Nd2 would win.} 29. Bxc4 dxc4) 29. Bxc4 {[%emt 0:02:45]} (29. Bg5 $17 {is the only way for White.} Bxg5 30. fxg5) 29... Kxh6 {[%emt 0:00:14]} (29... dxc4 $2 30. Bg5 Bxg5 31. Qxg5 $19) 30. Bb3 {[%emt 0:01:11] White is weak on the dark squares} Rac8 {[%emt 0:03:02]} 31. axb5 {[%emt 0:00:54]} axb5 {[%emt 0:00:06]} 32. Rfd1 {[%emt 0:00:14]} d4 {[%emt 0:00:39]} 33. Qf2 {[%emt 0:00:20]} Rc3 {[%emt 0:00:33]} 34. Ra1 {[%emt 0:01:17]} (34. Ba4 $142 b4 35. Rb2) 34... Qf6 {[%emt 0:02:32]} 35. Ra7 {[%emt 0:02:42]} (35. Rab1 $142) 35... Qh4 {[%emt 0:00:35]} 36. Qf1 {[%emt 0:02:51]} d3 {[%emt 0:02:20]} 37. g3 {[%emt 0:05:34] [#]} dxc2 $1 {[%emt 0:05:00]} 38. Rxd8 {[%emt 0:02:32]} (38. gxh4 Rxd1) 38... Bxd8 {[%emt 0:01:34]} ({Weaker is} 38... c1=R 39. Rh8+ Kg7 40. Rg8+ Kh6 41. Rh8+ Kg7 42. Rg8+ Kh6 43. Rh8+ $11) (38... c1=Q $142 39. Rd1 Rxg3 40. Rxc1 Rxh3+ 41. Qxh3 Qxh3+ 42. Kg1 Qe3+ 43. Kg2 Qd2+ 44. Kg3 Qxc1 45. Rxe7 Qg1+ 46. Kh3 Qg4+ 47. Kh2 Qxf4+ 48. Kg2 Qg5+ 49. Kf2 Qxe7 50. Bd1 e3+ 51. Ke2 Qe4 52. Bb3 f4 53. Bc2 Qxc2+ 54. Kf3 e2 55. Kf2 Qd2 56. Kg2 e1=Q+ 57. Kh3 Qg3#) 39. gxh4 {[%emt 0:01:58]} c1=Q {[%emt 0:00:15]} (39... c1=B 40. Rd7 Rxb3 41. Qxc1 $18) 40. Qxc1 {[%emt 0:00:11]} Rxc1+ {[%emt 0:00:04][%mdl 4096] Endgame KRB-KRB} 41. Kg2 {[%emt 0:50:05]} Bxh4 {[%emt 0:53:27]} 42. Ra6 {[%emt 0:02:40]} Rc3 {[%emt 0:00:27]} (42... Rb1 $142 43. Bf7 Rb2+ 44. Kf1 Rf2+ 45. Kg1 e3 46. Bxg6 e2 47. Bxf5+ Kg7) 43. Be6 {[%emt 0:00:30]} Rc2+ {[%emt 0:00:00]} 44. Kh1 {[%emt 0:00:00]} (44. Kg1 $142 Kg7 45. Ra7+ Kf8 46. Ra2 Rc1+ 47. Kh2) 44... Bf6 {[%emt 0:00:00] ...e3 is the strong threat.} 45. Bd7 {[%emt 0:00:00]} Kg7 {[%emt 0:00:00]} (45... e3 $142 46. Bxb5 Bd4) 46. Bxb5 {[%emt 0:00:00]} Rf2 {[%emt 0:00:00]} 47. Ra7+ {[%emt 0:00:00]} Kh6 {[%emt 0:00:00]} 48. Ra6 {[%emt 0:00:00]} Bd4 {[%emt 0:00:00]} 49. Be8 {[%emt 0:00:00] [#]} e3 $1 {[%emt 0:00:00][%cal Be4e3,Be3e2][%mdl 32]} (49... Rxf4 50. Rxg6+ Kh7 51. Kh2 $17) 50. Rxg6+ {[%emt 0:00:00]} Kh7 {[%emt 0:00:00][%cal Od4c3]} 51. Rg1 {[%emt 0:00:00]} (51. Re6 $142 e2 52. Bh5 Rf1+ 53. Kg2) 51... e2 $1 {[%emt 0:00:00][%cal Of2f1] ( -> ...Rf1!)} ({Not} 51... Rxf4 52. Bb5 $15) 52. Bb5 {[%emt 0:00:00] [#]} Rh2+ $3 {[%emt 0:00:21][%mdl 576] Discovered Attack, Promotion. Excellently played by Maghsoodloo!   Weighted Error Value: White=1.05/Black=0.49} 0-1

[Event "85th Tata Steel Masters 2023"]
[Site "Wijk aan Zee"]
[Date "2023.01.27"]
[Round "11.5"]
[White "Keymer, Vincent"]
[Black "Rapport, Richard"]
[Result "1/2-1/2"]
[ECO "A48"]
[WhiteElo "2696"]
[BlackElo "2740"]
[Annotator "TA"]
[PlyCount "81"]
[EventDate "2023.01.10"]
[EventType "tourn"]
[EventCountry "NED"]
[SourceTitle "playchess.com"]
[Source "ChessBase"]
[SourceQuality "1"]
[TimeControl "40/6000+30:30/3000+30:900+30"]

{[%evp 9,81,9,9,11,9,6,19,23,18,21,10,1,8,6,7,5,9,10,9,10,8,14,14,6,14,13,14,0,0,0,7,16,29,28,44,28,51,35,80,57,96,81,66,47,39,56,76,37,40,41,37,39,39,38,50,50,47,45,53,37,49,38,33,33,33,31,43,42,45,35,53,0,0,0]} 1. d4 {[%emt 0:00:06]} Nf6 {[%emt 0:01:18]} 2. Nf3 {[%emt 0:00:10]} g6 {[%emt 0:01:16]} 3. Nbd2 {[%emt 0:00:05]} c5 {[%emt 0:03:08]} 4. dxc5 {[%emt 0:00:27]} Qa5 {[%emt 0:00:21]} 5. a3 {[%emt 0:00:10]} Qxc5 {[%emt 0:00:21]} 6. b4 {[%emt 0:00:09] A48: 1 d4 Nf6 2 Nf3 g6: Torre, London and Colle Systems.} Qc3 {[%emt 0:08:04]} 7. Rb1 {[%emt 0:00:25]} Bg7 {[%emt 0:04:22]} 8. Bb2 {[%emt 0:00:05]} Qc7 {[%emt 0:02:54]} 9. e3 {[%emt 0:00:11]} O-O {[%emt 0:00:40]} 10. Bd3 {[%emt 0:01:12]} d6 {[%emt 0:02:03]} 11. O-O {[%emt 0:03:50] [#]} Nbd7 $146 {[%emt 0:02:07]} ({Predecessor:} 11... a5 12. c4 Nc6 13. Qb3 Rd8 14. b5 Nb8 15. b6 Qd7 16. c5 dxc5 17. Ne5 Qe8 {1-0 Bitelmajer,M (2332)-Nejanky,M (2050) Buenos Aires Duchamp Memorial op 4th 2012 (4)}) 12. c4 {[%emt 0:01:05]} b6 {[%emt 0:01:26]} 13. Qb3 {[%emt 0:01:39]} Bb7 {[%emt 0:00:44]} 14. Rfe1 {[%emt 0:02:02]} Rfe8 {[%emt 0:04:46]} 15. Rbc1 {[%emt 0:11:14]} Rac8 {[%emt 0:05:49]} 16. h3 {[%emt 0:01:10]} Qb8 {[%emt 0:01:07]} 17. Bf1 {[%emt 0:01:34]} Qa8 {[%emt 0:02:55]} 18. Nd4 {[%emt 0:02:38][%cal Bf3d4,Bd4e2,Be2c3][%mdl 32]} a6 {[%emt 0:03:38]} 19. Ne2 {[%emt 0:05:33]} d5 {[%emt 0:07:33]} 20. Nc3 {[%emt 0:20:50]} dxc4 {[%emt 0:26:12]} 21. Nxc4 {[%emt 0:00:11]} Qb8 {[%emt 0:01:20]} 22. a4 {[%emt 0:12:48]} Ba8 {[%emt 0:03:13]} 23. Rcd1 {[%emt 0:04:18]} (23. e4 $5 {[%cal Rc1d1]}) 23... Nf8 {[%emt 0:04:40]} 24. a5 {[%emt 0:02:36]} N8d7 {[%emt 0:02:14]} 25. axb6 {[%emt 0:02:36]} (25. Nxb6 {feels hotter.} Nxb6 26. Bxa6 Nbd7 27. Bxc8 Rxc8 28. b5) 25... Nxb6 {[%emt 0:00:06]} 26. Na5 {[%emt 0:00:44]} Nbd5 {[%emt 0:04:29]} 27. Nxd5 {[%emt 0:02:58]} (27. Rxd5 Nxd5 28. Nxd5 Bxb2 29. Qxb2 Bxd5 30. Bxa6 Rc7 $17) (27. Bxa6 $2 Nxc3 28. Rd3 (28. Bxc3 $2 Rxc3 29. Qxc3 Ng4 $19) 28... Bd5 $19) 27... Bxd5 {[%emt 0:00:19]} 28. Rxd5 {[%emt 0:11:37]} (28. Qa3 $5 {[%cal Rb2f6]} Red8 29. Nb3 $16) 28... Nxd5 {[%emt 0:00:19]} 29. Bxg7 {[%emt 0:00:04]} Kxg7 {[%emt 0:00:18]} 30. Qxd5 {[%emt 0:00:05] [#] Black must now prevent Nc6.} Qxb4 {[%emt 0:00:06]} 31. Ra1 {[%emt 0:02:50] Nc6 is the strong threat.} Qc3 {[%emt 0:02:46] Against Nc6} 32. Qa2 {[%emt 0:02:28]} Red8 {[%emt 0:04:56]} 33. Nc4 {[%emt 0:02:54] Prevents Rd2} ({Much worse is} 33. Bxa6 Rd2 34. Qb1 (34. Qxd2 $2 Qxd2 35. Bxc8 Qc3 $19) 34... Ra8 $15) 33... a5 {[%emt 0:03:12]} 34. Rb1 {[%emt 0:06:10]} ({Inferior is} 34. Qxa5 Rxc4 35. Bxc4 Rd1+ 36. Rxd1 Qxa5 $17) 34... Rc5 {[%emt 0:00:14]} 35. Qa1 {[%emt 0:03:31]} Qxa1 {[%emt 0:00:30]} 36. Rxa1 {[%emt 0:00:04]} Ra8 {[%emt 0:01:32]} 37. Ra4 {[%emt 0:00:15]} Rb5 {[%emt 0:03:31]} 38. g3 {[%emt 0:02:21]} e5 {[%emt 0:01:01]} 39. Kg2 {[%emt 0:02:30]} f5 {[%emt 0:00:06] [#]} 40. e4 {[%emt 0:02:16]} fxe4 $11 {[%emt 0:02:22]} 41. h4 {[%emt 0:08:34] Weighted Error Value: White=0.07 (flawless) /Black=0.07 (flawless)} 1/2-1/2

[Event "85th Tata Steel Masters 2023"]
[Site "Wijk aan Zee"]
[Date "2023.01.27"]
[Round "11.6"]
[White "Ding, Liren"]
[Black "Van Foreest, Jorden"]
[Result "1/2-1/2"]
[ECO "D12"]
[WhiteElo "2811"]
[BlackElo "2681"]
[Annotator "TA"]
[PlyCount "65"]
[EventDate "2023.01.10"]
[EventType "tourn"]
[EventCountry "NED"]
[SourceTitle "playchess.com"]
[Source "ChessBase"]
[SourceQuality "1"]
[TimeControl "40/6000+30:30/3000+30:900+30"]

{[%evp 12,65,27,16,36,10,35,28,34,23,90,86,81,97,82,93,97,84,97,0,0,0,0,0,4,0,0,0,0,-14,-25,-15,0,0,0,0,0,0,-6,-10,0,0,0,0,0,0,0,0,0,-23,-8,-9,0,-11,0,-18]} 1. d4 {[%emt 0:00:32]} d5 {[%emt 0:00:11]} 2. c4 {[%emt 0:00:08]} c6 {[%emt 0:00:07]} 3. Nf3 {[%emt 0:00:04]} Nf6 {[%emt 0:00:08]} 4. e3 {[%emt 0:00:04]} Bf5 {[%emt 0:00:37]} 5. Nc3 {[%emt 0:00:05]} e6 {[%emt 0:00:08]} 6. Nh4 {[%emt 0:00:03]} Be4 {[%emt 0:00:25]} 7. f3 {[%emt 0:00:06]} Bg6 {[%emt 0:00:06] D12: Slav Defence: 3 Nf3 Nf6 4 e3 Bf5.} 8. Bd2 {[%emt 0:00:27]} Nbd7 {[%emt 0:05:06]} (8... dxc4 $5 {[%cal Rg6d3]} 9. Bxc4 a6 $11) 9. Nxg6 {[%emt 0:01:35]} hxg6 {[%emt 0:00:07] White has an edge.} 10. Qb3 {[%emt 0:00:17] [#]} dxc4 $1 $146 {[%emt 0:01:07][%mdl 8] A relevant novelty.} (10... Qc7 $11) ({Predecessor:} 10... Qc7 11. O-O-O dxc4 12. Bxc4 a6 13. Be2 b5 14. h4 c5 15. Kb1 Be7 16. g4 c4 {½-½ Bacrot,E (2642)-Xiong,J (2686) Titled Tuesday intern op 18th Jan blitz 2022 (9)}) 11. Qxb7 $16 {[%emt 0:03:03]} c5 {[%emt 0:00:40]} 12. Nb5 {[%emt 0:15:29] [#] Black must now prevent Nc7+.} (12. Bxc4 cxd4 13. Nb5 (13. exd4 Rb8 $14) 13... Rc8 $14) 12... Rb8 {[%emt 0:00:16]} 13. Nc7+ {[%emt 0:03:07]} Ke7 {[%emt 0:00:07]} 14. Qxa7 {[%emt 0:00:04] White is much more active.} Qc8 {[%emt 0:00:14] [#] Hoping for ...Rb7.} (14... Rxb2 $2 15. Bxc4 (15. dxc5 Qb8 $16) 15... Rh5 16. Bb3 $18) 15. dxc5 {[%emt 0:10:50]} (15. Bxc4 Rb7 16. Qa3 Qxc7 $17) (15. Qa5 $1 $16) 15... Rb7 $36 {[%emt 0:02:25][%mdl 2048] Black has some pressure.} (15... Rxb2 $2 16. c6 (16. Bxc4 $2 {too greedy.} Rb7 $19) 16... Qb8 17. Qxb8 Nxb8 18. O-O-O $18 (18. Bxc4 Kd6 $16)) 16. Qa3 {[%emt 0:00:04]} Qxc7 {[%emt 0:13:46]} 17. c6+ {[%emt 0:00:48]} (17. Bxc4 Ra7 18. Qc3 Qxc5 $17) 17... Ke8 {[%emt 0:16:51]} 18. cxd7+ {[%emt 0:01:32]} Nxd7 {[%emt 0:00:10]} 19. Qc3 {[%emt 0:10:55]} Bb4 {[%emt 0:02:34]} ({Don't play} 19... Rxh2 20. Rxh2 Qxh2 21. O-O-O $16) 20. Qc2 {[%emt 0:00:08][%cal Od2b4]} (20. Qc1 $5 {[%cal Rd2b4]}) 20... Qe5 {[%emt 0:09:38]} 21. Bxb4 {[%emt 0:06:06]} Qxe3+ {[%emt 0:01:09]} (21... Rxb4 $5 22. O-O-O $8 Qxe3+ 23. Qd2 Qxd2+ 24. Rxd2 Ke7 $11) 22. Qe2 {[%emt 0:00:35]} Qxe2+ {[%emt 0:00:15]} 23. Bxe2 {[%emt 0:00:02]} Rxb4 {[%emt 0:00:08]} 24. O-O-O {[%emt 0:00:54]} Ke7 {[%emt 0:00:06] Strongly threatening ...Rhb8.} 25. Rd2 {[%emt 0:04:52]} g5 {[%emt 0:10:27]} 26. Rc2 {[%emt 0:03:11]} Nb6 {[%emt 0:08:15]} 27. a3 {[%emt 0:03:04]} Ra4 {[%emt 0:00:42]} 28. Kb1 {[%emt 0:00:06]} Rh4 {[%emt 0:09:23]} 29. g3 {[%emt 0:11:11]} Rh3 {[%emt 0:02:12]} 30. Bd1 {[%emt 0:05:47]} Ra5 {[%emt 0:03:15]} 31. Be2 {[%emt 0:07:28] The position is equal.} Ra4 {[%emt 0:00:08]} 32. Bd1 {[%emt 0:00:18]} Ra5 {[%emt 0:00:06]} 33. Be2 {[%emt 0:01:55] Weighted Error Value: White=0.07 (flawless) /Black=0.09 (flawless)} 1/2-1/2

[Event "85th Tata Steel Masters 2023"]
[Site "Wijk aan Zee"]
[Date "2023.01.27"]
[Round "11.7"]
[White "Erigaisi Arjun"]
[Black "Gukesh D"]
[Result "1/2-1/2"]
[ECO "C67"]
[WhiteElo "2722"]
[BlackElo "2725"]
[Annotator "TA"]
[PlyCount "90"]
[EventDate "2023.01.10"]
[EventType "tourn"]
[EventCountry "NED"]
[SourceTitle "playchess.com"]
[Source "ChessBase"]
[SourceQuality "1"]
[TimeControl "40/6000+30:30/3000+30:900+30"]

{[%evp 12,90,0,0,0,8,0,0,-9,0,0,0,0,0,0,0,0,0,0,0,0,0,0,0,4,-6,10,14,11,0,0,0,0,0,0,0,0,0,0,0,0,-8,0,-10,0,0,0,0,0,0,0,0,0,0,0,-13,0,-10,0,0,0,0,0,0,0,0,0,0,0,0,0,0,0,0,0,0,0,0,0,0,0]} 1. e4 {[%emt 0:00:10]} e5 {[%emt 0:00:18]} 2. Nf3 {[%emt 0:00:06]} Nc6 {[%emt 0:00:06]} 3. Bb5 {[%emt 0:00:06]} Nf6 {[%emt 0:00:07]} 4. O-O {[%emt 0:05:37]} Nxe4 {[%emt 0:00:05]} 5. d4 {[%emt 0:00:10]} Nd6 {[%emt 0:00:06]} 6. dxe5 {[%emt 0:01:15]} Nxb5 {[%emt 0:00:07]} 7. a4 {[%emt 0:00:05] The position is equal.} Nbd4 {[%emt 0:00:25] C67: Ruy Lopez: Berlin Defence: 4 0-0 Nxe4.} 8. Nxd4 {[%emt 0:00:06]} d5 {[%emt 0:00:06] The modern move.} 9. c3 {[%emt 0:00:11]} Be7 {[%emt 0:03:28]} 10. f4 {[%emt 0:00:20]} O-O {[%emt 0:02:43]} 11. Be3 {[%emt 0:00:19]} f6 {[%emt 0:08:30] [#]} 12. Nd2 $146 {[%emt 0:06:35]} ({Predecessor:} 12. Nxc6 bxc6 13. Nd2 fxe5 14. fxe5 Rxf1+ 15. Qxf1 Qf8 16. Qxf8+ Kxf8 17. b4 a5 18. bxa5 {1-0 Najer,E (2659)-Esipenko,A (2709) RUS-chT 29th 2022 (6.4)}) 12... Nxd4 {[%emt 0:02:47]} 13. Bxd4 {[%emt 0:03:04]} c5 {[%emt 0:02:03]} 14. exf6 $1 {[%emt 0:00:51]} cxd4 {[%emt 0:03:24]} 15. fxe7 {[%emt 0:02:21]} Qxe7 {[%emt 0:00:05]} 16. Qf3 {[%emt 0:05:05]} dxc3 {[%emt 0:01:18]} 17. Qxc3 {[%emt 0:19:03]} Qf6 {[%emt 0:18:21]} 18. Qd3 {[%emt 0:23:14]} (18. Qxf6 {simplifies} Rxf6 19. Rac1 Bd7 20. Rc7) 18... Qxb2 {[%emt 0:11:33]} 19. Qxd5+ {[%emt 0:00:42]} Kh8 {[%emt 0:00:03]} 20. Nc4 {[%emt 0:01:08] Repels Qb6+} (20. Rae1 {simplifies} Bf5 21. Nc4 Qf6 22. Ne5) 20... Be6 {[%emt 0:04:02][%mdl 64] [#] Deflection} 21. Qe5 {[%emt 0:03:48]} (21. Qxe6 $5 Qd4+ $8 22. Qe3 Qxc4 23. a5 $11) 21... Qxe5 {[%emt 0:00:49]} 22. Nxe5 {[%emt 0:00:05]} Rac8 {[%emt 0:17:07]} 23. Rf2 {[%emt 0:05:36]} Rc5 {[%emt 0:09:17]} 24. Re1 {[%emt 0:08:53]} b5 {[%emt 0:07:52]} 25. a5 {[%emt 0:02:23]} (25. f5 $5 Bc8 $8 26. axb5 $11) 25... Rd8 {[%emt 0:03:17]} 26. Rb2 {[%emt 0:04:48]} Kg8 {[%emt 0:00:40]} 27. h3 {[%emt 0:00:15]} Bc8 {[%emt 0:02:29]} 28. Nf3 {[%emt 0:01:50]} Rf8 {[%emt 0:02:17]} 29. Rb4 {[%emt 0:02:53]} a6 {[%emt 0:01:49]} 30. Re7 {[%emt 0:04:46]} Rcf5 {[%emt 0:02:08]} 31. g3 {[%emt 0:00:08]} R5f7 {[%emt 0:00:17]} 32. Re3 {[%emt 0:00:44]} Rc7 {[%emt 0:00:14]} ({But not} 32... Bxh3 33. Ng5 $16) 33. g4 {[%emt 0:00:51]} Rc2 {[%emt 0:01:00]} 34. f5 {[%emt 0:00:57]} Rd8 {[%emt 0:01:11]} 35. Rd4 {[%emt 0:04:09]} Rxd4 {[%emt 0:00:11]} 36. Nxd4 $11 {[%emt 0:00:04][%mdl 4096] Endgame KRB-KRN} Rc4 {[%emt 0:00:29]} 37. Nf3 {[%emt 0:00:14]} Kf8 {[%emt 0:01:02]} 38. Kf2 {[%emt 0:00:36]} Rc2+ {[%emt 0:03:49]} 39. Kg3 {[%emt 0:01:19]} b4 {[%emt 0:01:00]} 40. Rb3 {[%emt 0:02:28]} Rc4 {[%emt 0:00:41]} 41. Kf2 {[%emt 0:51:55]} Bd7 {[%emt 0:20:22]} 42. Nd2 {[%emt 0:00:00]} Ba4 {[%emt 0:00:33]} 43. Rb1 {[%emt 0:00:00]} Rc2 {[%emt 0:00:16]} 44. Ke1 {[%emt 0:00:00]} b3 {[%emt 0:00:35]} 45. Nxb3 {[%emt 0:00:00] [#] Threatens to win with Nd4.} Bxb3 {[%emt 0:00:39] An even fight not without its subleties.   Weighted Error Value: White=0.01 (flawless) /Black=0.02 (flawless)} 1/2-1/2